Cogmind - Beta 16.1 @@@ ROGUE MODE // 2026.04.05 @ 11:26:21 Player: ae Result: Escaped! Performance ------------- Evolutions (9) 4500 Regions Visited (14) 2800 Robots Destroyed (41) 205 Value Destroyed (1109) 1109 Prototype IDs (57) 1140 Alien Tech Used (0) 0 Bonus (5562) 5562 TOTAL SCORE: 15316 Bonus ------- Follower Combat Kills 60 Aligned with FarCom 300 Win 3000 Win Speed 2202 Cogmind --------- Core Integrity 1260/1600 Matter 0/300 Energy 69/100 System Corruption 8% Temperature Cool (5) Movement Flying (27) Location To Epsilon Eridani Parts ------- > --- POWER (2) -------- Backup Power VII Backup Power VII > --- PROPULSION (7) --- Q-thruster Electron Diverter Improved Q-thruster Improved Q-thruster Improved Q-thruster > --- UTILITY (14) ----- Advanced Power Amplifier Large Storage Unit Enhanced Optical Array Advanced Transmission Jammer ECM Suite Graphene Brace Hacking Suite Hacking Suite Advanced Hacking Suite Advanced System Shield > --- WEAPON (2) ------- (None) > --- INVENTORY (15) --- Machine Analyzer Improved Hacking Suite System Shield Enhanced Nova Cannon Peak State ------------ > --- POWER ------------ Backup Power VII Backup Power VII > --- PROPULSION ------- Field Propulsion Drive Field Propulsion Array Electron Diverter Improved Q-thruster Improved Q-thruster Cooled Q-thruster > --- UTILITY ---------- Advanced Power Amplifier Large Storage Unit Enhanced Optical Array Advanced Transmission Jammer ECM Suite Improved Cloaking Device Improved Light Armor Plating Centrium Light Armor Plating Graphene Brace Hacking Suite Hacking Suite Hacking Suite Advanced Hacking Suite Advanced System Shield > --- WEAPON ----------- Enhanced Nova Cannon Fusion Bomb Launcher > --- INVENTORY -------- Backup Power VII Backup Power VII Q-thruster Q-thruster Improved Q-thruster Improved Q-thruster Machine Analyzer Improved Hacking Suite System Shield Heavy Rocket Launcher [Rating: 164] Favorites ----------- Power Backup Power VII Engine Backup Power III Power Core Backup Power VII Reactor Micro Antimatter Reactor Propulsion VTOL Module Treads Light Treads Flight Unit VTOL Module Utility Hacking Suite Device Structural Scanner Storage Small Storage Unit Processor Enhanced Optical Array Hackware Hacking Suite Protection Improved Medium Armor Plating Weapon Longsword +1 Energy Cannon Enhanced Nova Cannon Ballistic Gun Light Assault Rifle Launcher Mini Grenade Launcher Slashing Weapon Longsword +1 Build | -11 -10 -10 -9 -9 -9 -8 -8 -7 -6 -5 -4 -3 -2 -1 ------- Run | Yrd Mat Min Mat Min Exi Min Mat Fac Fac Fac Fac Res Res Acc Slots Evolved 18 | . . . 2 . . . 2 2 2 2 2 2 2 2 Power 1 | . . . . . . . . . 1 . . . . . Propulsion 5 | . . . 2 . . . . . 1 2 . . . . Utility 12 | . . . . . . . 2 2 . . 2 2 2 2 Weapon . | . . . . . . . . . . . . . . . Parts Attached 67 | 7 3 . 2 . . . 5 4 1 8 6 5 9 17 Power 6 | . . . . . . . . . . 1 . . 3 2 Engine 1 | . . . . . . . . . . . . . 1 . Core 3 | . . . . . . . . . . 1 . . . 2 Reactor 2 | . . . . . . . . . . . . . 2 . Propulsion 25 | 2 2 . 2 . . . 1 . 1 5 2 1 3 6 Treads 2 | 2 . . . . . . . . . . . . . . Leg . | . . . . . . . . . . . . . . . Wheel . | . . . . . . . . . . . . . . . Hover . | . . . . . . . . . . . . . . . Flight 23 | . 2 . 2 . . . 1 . 1 5 2 1 3 6 Utility 29 | 3 1 . . . . . 2 4 . 2 4 4 2 7 Device 11 | 2 . . . . . . . 1 . 2 1 1 1 3 Storage 3 | 1 . . . . . . . . . . 1 1 . . Processor 2 | . . . . . . . . . . . 1 . . 1 Hackware 9 | . . . . . . . 2 2 . . 1 2 . 2 Protection 4 | . 1 . . . . . . 1 . . . . 1 1 Artifact . | . . . . . . . . . . . . . . . Weapon 7 | 2 . . . . . . 2 . . . . . 1 2 Energy Gun . | . . . . . . . . . . . . . . . Energy Cannon 1 | . . . . . . . . . . . . . . 1 Ballistic Gun 2 | 2 . . . . . . . . . . . . . . Ballistic Cannon . | . . . . . . . . . . . . . . . Launcher 3 | . . . . . . . 1 . . . . . 1 1 Special Weapon . | . . . . . . . . . . . . . . . Impact Weapon . | . . . . . . . . . . . . . . . Slashing Weapon 1 | . . . . . . . 1 . . . . . . . Piercing Weapon . | . . . . . . . . . . . . . . . Special Melee Weapon . | . . . . . . . . . . . . . . . Unidentified Prototypes 3 | . . . . . . . . . . . 1 . 1 1 Parts Lost 22 | . . . . . . . . 1 . . . . 2 19 Power 2 | . . . . . . . . . . . . . . 2 Propulsion 6 | . . . . . . . . . . . . . . 6 Utility 10 | . . . . . . . . 1 . . . . 1 8 Weapon 4 | . . . . . . . . . . . . . 1 3 Highest Loss Streak 18 | . . . . . . . . 1 . . . . 1 18 To Critical Strikes . | . . . . . . . . . . . . . . . Average Backups 10 | 2 5 8 7 8 8 8 6 7 7 7 7 11 14 14 Power . | 1 . . . . . . . . . . . . 1 2 Propulsion 3 | 1 3 4 1 1 1 1 2 3 2 . 1 5 6 5 Utility 4 | . 1 1 3 5 5 5 3 3 4 6 4 4 4 4 Weapon 1 | . . 3 2 2 2 2 1 . 1 1 1 1 1 2 Tool/Special . | . . . . . . . . . . . . . . . Unused Backups 26 | . 4 . 3 . 1 . 3 3 2 2 . . 2 6 Power 2 | . 2 . . . . . . . . . . . . . Propulsion 5 | . 2 . . . . . 1 1 . . . . 1 . Utility 12 | . . . 1 . . . 1 1 1 2 . . 1 5 Weapon 7 | . . . 2 . 1 . 1 1 1 . . . . 1 Tool/Special . | . . . . . . . . . . . . . . . Average Slot Usage (%) 92 | . 77 85 85 88 88 86 97 99 93 99 96 93 92 91 Engine 3 | . . . . . . . 7 7 6 8 5 4 1 . Core 3 | . . . . . . . . . . 1 5 4 6 7 Flight 30 | . 22 28 41 44 44 44 36 30 33 40 33 28 26 24 Device 13 | . 14 14 11 11 11 7 9 7 6 5 9 13 16 22 Storage 5 | . 3 14 11 11 11 11 9 7 6 5 5 4 4 4 Processor 2 | . . . . . . . . . . . 4 4 4 4 Hackware 17 | . . . . . . . 16 23 20 17 20 22 21 20 Protection 3 | . 3 . . . . 3 . 6 6 4 . . 3 4 Ballistic Gun 3 | . 28 28 22 22 22 20 5 . . . . . . . Launcher 2 | . . . . . . . 5 7 6 5 5 4 2 . Slashing Weapon 3 | . . . . . . . 7 7 6 5 5 4 4 2 Peak Build Rating 164 | 8 9 9 12 12 13 13 29 38 43 74 82 101 133 164 Average Rating 80 | 5 7 9 11 12 12 12 26 36 42 58 77 95 124 142 On Entrance 37 | . 5 9 9 12 12 13 13 29 38 43 67 82 101 126 Avg Prop Armor Cover (%) 4 | 28 28 . 9 9 9 8 8 3 . 2 1 1 1 4 Naked Turns . | . . . . . . . . . . . . . . . Heaviest Build 58 | 7 8 8 8 8 8 9 11 15 15 22 25 38 55 58 Greatest Support 59 | 40 8 8 16 8 8 8 20 20 26 35 44 53 57 59 Greatest Overweight (x) 1 | . . . . . . 1 . . . . . . . 1 Average Overweight (x) . | . . . . . . . . . . . . . . . Largest Inventory Capacity 15 | 8 8 8 8 8 8 8 8 8 8 8 10 15 15 15 Average Capacity 11 | 5 5 8 8 8 8 8 8 8 8 8 8 13 15 15 Most Carried 15 | 5 8 8 8 8 8 8 8 8 8 8 10 14 15 15 Average Carried 10 | 2 5 8 7 8 8 8 6 7 7 7 7 11 14 14 Final Capacity 15 | 5 8 8 8 8 8 8 8 8 8 8 10 15 15 15 Final Carried 15 | 5 8 8 8 8 8 8 8 8 8 8 10 14 15 4 Class Distribution -------------------- 36% | Hacker-Ninja 35% | Hacker-Sprinter 15% | Sprinter 8% | Hacker-Scout Dominant Class ---------------- Sprinter | -10/Materials Sprinter | -10/Mines Sprinter | -9/Materials Sprinter | -9/Mines Sprinter | -9/Exiles Sprinter | -8/Mines Hacker-Sprinter | -8/Materials Hacker-Sprinter | -7/Factory Hacker-Sprinter | -6/Factory Hacker-Sprinter | -5/Factory Hacker-Ninja | -4/Factory Hacker-Ninja | -3/Research Hacker-Ninja | -2/Research Hacker-Ninja | -1/Access Resources | -11 -10 -10 -9 -9 -9 -8 -8 -7 -6 -5 -4 -3 -2 -1 ----------- Run | Yrd Mat Min Mat Min Exi Min Mat Fac Fac Fac Fac Res Res Acc Matter Collected 1139 | 207 . . 141 2 . . 97 69 44 60 160 40 129 190 Remotely . | . . . . . . . . . . . . . . . Salvage Created 1603 | 78 . . . 12 . . 97 69 171 335 181 127 184 349 Parts 88 | 13 . . . 3 . . 6 6 10 7 5 6 14 18 Haulers Intercepted 7 | . . . . . . . . 1 1 2 . 1 . 2 Recyclers Shooed 1 | . . . . . . . . . 1 . . . . . Parts Field Recycled . | . . . . . . . . . . . . . . . Retrieved Matter . | . . . . . . . . . . . . . . . Parts Self-Destructed . | . . . . . . . . . . . . . . . Prevented . | . . . . . . . . . . . . . . . Parts Restored . | . . . . . . . . . . . . . . . Kills | -11 -10 -10 -9 -9 -9 -8 -8 -7 -6 -5 -4 -3 -2 -1 ------- Run | Yrd Mat Min Mat Min Exi Min Mat Fac Fac Fac Fac Res Res Acc Combat Hostiles Destroyed 9 | . . . . 1 . . . . . . . . 5 3 Guns 1 | . . . . 1 . . . . . . . . . . AOE 8 | . . . . . . . . . . . . . 5 3 Classes Destroyed 9 | 1 . . . 1 . . 3 2 1 . . . . 1 Worker 2 | . . . . . . . 1 . 1 . . . . . Builder 3 | . . . . . . . 1 . 1 . . . 1 . Tunneler 4 | 4 . . . . . . . . . . . . . . Hauler 7 | . . . . . . . . 1 1 2 . 1 . 2 Recycler 3 | . . . . . . . 1 . . 1 1 . . . Operator 2 | . . . . . . . . 1 1 . . . . . Watcher 11 | . . . . . . . . . 1 1 1 1 3 4 Swarmer 7 | . . . . 1 . . . . . . . . 5 1 Programmer 2 | . . . . . . . . . . . . . . 2 Best Kill Streak 5 | 4 . . . 1 . . 2 1 1 4 1 1 5 3 Combat Bots Only 5 | . . . . 1 . . . . . . . . 5 3 Max Kills in Single Turn 3 | 1 . . . 1 . . 1 1 1 1 1 1 3 1 Gunslinging . | . . . . . . . . . . . . . . . Exploded 3 | . . . . . . . . . . . . . 3 1 Melee . | . . . . . . . . . . . . . . . Uniques/NPCs Destroyed . | . . . . . . . . . . . . . . . Combat | -11 -10 -10 -9 -9 -9 -8 -8 -7 -6 -5 -4 -3 -2 -1 -------- Run | Yrd Mat Min Mat Min Exi Min Mat Fac Fac Fac Fac Res Res Acc Hostile Shots Fired 202 | . . . . . . . . . . 2 2 17 43 138 Missed 82 | . . . . . . . . . . 1 . 13 26 42 Hits 120 | . . . . . . . . . . 1 2 4 17 96 Projectile 120 | . . . . . . . . . . 1 2 4 17 96 Critical Strikes 7 | . . . . . . . . . . . . . . 7 Actively Blocked 7 | . . . . . . . . . . . . . . 7 Damage Taken 2797 | . . . . . . . . . . 25 48 105 359 2260 Core 365 | . . . . . . . . . . 25 . . . 340 Absorbed by Shields . | . . . . . . . . . . . . . . . Regen/Repaired (Parts) 27 | . . . . . . . . 2 . . 25 . . . Core Remaining (%) 97 | 100 . 100 . . . 100 100 100 100 97 100 100 100 78 Volleys Fired 68 | 9 . . . 1 . . 1 2 2 4 . . 10 39 Largest 2 | 2 . . . 2 . . 1 1 1 1 . . 1 2 Hottest 120 | 40 . . . 40 . . 30 30 30 30 . . 52 120 Shots Fired 84 | 18 . . . 2 . . 1 2 2 4 . . 10 45 Gun 20 | 18 . . . 2 . . . . . . . . . . Cannon 32 | . . . . . . . . . . . . . . 32 Launcher 32 | . . . . . . . 1 2 2 4 . . 10 13 Special . | . . . . . . . . . . . . . . . Kinetic 20 | 18 . . . 2 . . . . . . . . . . Thermal 32 | . . . . . . . . . . . . . . 32 Explosive 32 | . . . . . . . 1 2 2 4 . . 10 13 Electromagnetic . | . . . . . . . . . . . . . . . Robot Hit Streak 7 | 6 . . . 1 . . . . . . . . 2 7 Robot Miss Streak 2 | 1 . . . 1 . . . . . . . . . 2 Penetration Max . | . . . . . . . . . . . . . . . Secondary Targets . | . . . . . . . . . . . . . . . Shots Hit Robots 76 | 14 . . . 1 . . 3 5 9 9 2 7 5 21 Core Hits 65 | 8 . . . 1 . . 2 1 2 5 1 2 13 30 Critical Kills . | . . . . . . . . . . . . . . . Critical Parts Destroyed . | . . . . . . . . . . . . . . . Critical Strikes 4 | . . . . . . . . 1 . 2 . 1 . . Sever 4 | . . . . . . . . 1 . 2 . 1 . . Melee Attacks 178 | . . . . . . . 17 19 25 26 13 24 23 31 Impact . | . . . . . . . . . . . . . . . Slashing 178 | . . . . . . . 17 19 25 26 13 24 23 31 Piercing . | . . . . . . . . . . . . . . . Sneak Attacks 22 | . . . . . . . 3 2 5 4 1 3 2 2 Combat Hostiles . | . . . . . . . . . . . . . . . Follow-up Attacks . | . . . . . . . . . . . . . . . Damage Inflicted 6139 | 109 . . . 9 . . 305 353 733 705 167 487 900 2371 Guns 118 | 109 . . . 9 . . . . . . . . . . Cannons 299 | . . . . . . . . . . . . . . 299 Explosions 2192 | . . . . . . . . . . . . . 606 1586 Melee 3530 | . . . . . . . 305 353 733 705 167 487 294 486 Ramming . | . . . . . . . . . . . . . . . Kinetic 118 | 109 . . . 9 . . . . . . . . . . Thermal 299 | . . . . . . . . . . . . . . 299 Explosive 2192 | . . . . . . . . . . . . . 606 1586 Electromagnetic . | . . . . . . . . . . . . . . . Impact . | . . . . . . . . . . . . . . . Slashing 3530 | . . . . . . . 305 353 733 705 167 487 294 486 Piercing . | . . . . . . . . . . . . . . . Highest Corruption 8 | . . . . . . . . . . . . . 1 8 Average Corruption 1 | . . . . . . . . . . . . . 1 4 Corruption Purged . | . . . . . . . . . . . . . . . Corruption Blocked . | . . . . . . . . . . . . . . . Effects 4 | . . . . . . . . . . . . . 3 1 Message Errors 1 | . . . . . . . . . . . . . 1 . Heat Flow Errors 2 | . . . . . . . . . . . . . 1 1 Data Loss (minor) 1 | . . . . . . . . . . . . . 1 . Overload Shots . | . . . . . . . . . . . . . . . Overflow Damage 617 | . . . . . . . 92 47 261 9 71 . 59 78 Projectiles . | . . . . . . . . . . . . . . . Explosions 65 | . . . . . . . . . . . . . . 65 Melee 552 | . . . . . . . 92 47 261 9 71 . 59 13 Knockbacks . | . . . . . . . . . . . . . . . Impact . | . . . . . . . . . . . . . . . Kinetic . | . . . . . . . . . . . . . . . Secondary . | . . . . . . . . . . . . . . . Self-Inflicted Damage 27 | . . . . . . . . . . . . . 27 . Shots 2 | . . . . . . . . . . . . . 2 . Rammed . | . . . . . . . . . . . . . . . Targets Rammed . | . . . . . . . . . . . . . . . Kicked . | . . . . . . . . . . . . . . . Crushed . | . . . . . . . . . . . . . . . Highest Temperature 263 | . . . . . . . . . . 4 34 81 201 263 Average Temperature 34 | . . . . . . . . . . 2 14 20 21 45 Received Heat Transfer 126 | . . . . . . . . . . 9 9 9 18 81 Effects 1 | . . . . . . . . . . . . . . 1 Interference 1 | . . . . . . . . . . . . . . 1 Siege Activations . | . . . . . . . . . . . . . . . Martial Activations . | . . . . . . . . . . . . . . . Shielding Activations . | . . . . . . . . . . . . . . . Robots Disrupted . | . . . . . . . . . . . . . . . Combat Hostiles . | . . . . . . . . . . . . . . . Robots Corrupted . | . . . . . . . . . . . . . . . Combat Hostiles . | . . . . . . . . . . . . . . . Parts Fried . | . . . . . . . . . . . . . . . Impact Corruptions . | . . . . . . . . . . . . . . . Robots Melted . | . . . . . . . . . . . . . . . Combat Hostiles . | . . . . . . . . . . . . . . . Parts Melted . | . . . . . . . . . . . . . . . Heat Transferred 259 | . . . . . . . . . . . . . . 259 Parts Sabotaged . | . . . . . . . . . . . . . . . Parts Stolen . | . . . . . . . . . . . . . . . Parts Stripped . | . . . . . . . . . . . . . . . Power Chain Reactions . | . . . . . . . . . . . . . . . Alert | -11 -10 -10 -9 -9 -9 -8 -8 -7 -6 -5 -4 -3 -2 -1 ------- Run | Yrd Mat Min Mat Min Exi Min Mat Fac Fac Fac Fac Res Res Acc Maximum Alert Level 1 | . . . . . . . . . . . . . 1 1 Low Security (%) 92 | 100 100 100 100 100 . 100 100 100 100 100 100 100 58 97 Level 1 7 | . . . . . . . . . . . . . 41 2 Level 2 . | . . . . . . . . . . . . . . . Level 3 . | . . . . . . . . . . . . . . . Level 4 . | . . . . . . . . . . . . . . . Level 5 . | . . . . . . . . . . . . . . . High Security . | . . . . . . . . . . . . . . . Max Security . | . . . . . . . . . . . . . . . Peak Influence 338 | 10 6 . 70 20 . . 33 24 16 81 12 151 313 338 Initial 134 | . 6 . . 11 . . . 5 . 3 7 5 . 134 Average 62 | 1 . . 28 6 . . 11 3 2 38 2 66 162 106 Influence Increases 2146 | 20 6 . 129 20 . . 64 82 78 210 51 254 502 730 Destroy 0b10 Robot/C 200 | . . . . 20 . . . . . . . 20 100 60 Destroy 0b10 Robot/NC 160 | 20 . . . . . . 15 10 25 20 10 10 20 30 Destroy Leader 66 | . . . . . . . . 2 4 6 2 14 16 22 Allied During Kill 3 | . . . . . . . . . . . . 3 . . Successful Hack 234 | . 6 . 9 . . . 12 32 . 29 17 15 33 81 Disable Machine 60 | . . . . . . . . . . 30 . . . 30 Destroy Structure 823 | . . . . . . . 22 23 34 80 22 42 258 342 Partial Spotted 345 | . . . 30 . . . 15 15 15 15 . 150 75 30 Lose Combat Pursuer 255 | . . . 90 . . . . . . 30 . . . 135 Influence Decreases 1908 | 10 16 . 99 40 10 . 51 95 70 201 57 265 278 716 Entered New Map 152 | . 4 . . 19 10 . . 8 . 5 10 6 . 90 Time Decay 1261 | 10 12 . 29 21 . . 51 77 69 166 47 108 255 416 Lost Part 220 | . . . . . . . . 10 . . . . 20 190 Lost Ally 50 | . . . . . . . . . . 30 . . . 20 Purge Threat 225 | . . . 70 . . . . . 1 . . 151 3 . Squads Dispatched 22 | . . . 1 . . . . 3 2 5 2 1 2 6 Investigation 4 | . . . . . . . . 1 . 2 1 . . . Extermination 11 | . . . . . . . . 1 1 1 1 1 2 4 Reinforcement 7 | . . . 1 . . . . 1 1 2 . . . 2 Assault . | . . . . . . . . . . . . . . . Garrison . | . . . . . . . . . . . . . . . Intercept . | . . . . . . . . . . . . . . . Searches Triggered . | . . . . . . . . . . . . . . . Construction Impeded 1 | . . . . . . . . . . . . . . 1 Haulers Reinforced 1 | . . . . . . . . . . 1 . . . . Active Scanning Responses . | . . . . . . . . . . . . . . . Cargo Convoy Interrupts . | . . . . . . . . . . . . . . . Stealth | -11 -10 -10 -9 -9 -9 -8 -8 -7 -6 -5 -4 -3 -2 -1 --------- Run | Yrd Mat Min Mat Min Exi Min Mat Fac Fac Fac Fac Res Res Acc Distress Signals 8 | . . . 2 . . . . . . 2 . 2 2 . Communications Jammed 19 | . . . . . . . . . . 3 . . 2 14 Distress Signals 14 | . . . . . . . . . . 3 . . 2 9 Times Spotted 118 | . 3 . 2 2 . . 2 3 2 12 2 23 25 42 Peak Tracking Total 17 | . 2 . 6 2 . . 2 1 1 4 1 7 6 17 Tactical Retreats 20 | . . . 2 . . . . . . 2 1 4 6 5 ECM-based Alert Blocks 37 | . . . . . . . . . . 1 1 16 13 6 Traps | -11 -10 -10 -9 -9 -9 -8 -8 -7 -6 -5 -4 -3 -2 -1 ------- Run | Yrd Mat Min Mat Min Exi Min Mat Fac Fac Fac Fac Res Res Acc Traps Triggered 4 | . . . . . . . . . . . . . 1 3 Indirectly . | . . . . . . . . . . . . . . . Trap Hack Attempts . | . . . . . . . . . . . . . . . Triggered . | . . . . . . . . . . . . . . . Disarmed . | . . . . . . . . . . . . . . . Reprogrammed . | . . . . . . . . . . . . . . . Reused . | . . . . . . . . . . . . . . . Traps Extracted . | . . . . . . . . . . . . . . . Installed . | . . . . . . . . . . . . . . . Triggered . | . . . . . . . . . . . . . . . Machines | -11 -10 -10 -9 -9 -9 -8 -8 -7 -6 -5 -4 -3 -2 -1 ---------- Run | Yrd Mat Min Mat Min Exi Min Mat Fac Fac Fac Fac Res Res Acc Machines Disabled 4 | . . . . . . . . . . 2 . . . 2 Max in Single Turn 1 | . . . . . . . . . . 1 . . . 1 Garrison Access 4 | . . . . . . . . . 1 . . 1 . 2 Energy Cycler 1 | . . . . . . . . . . . . . . 1 Machines Repaired . | . . . . . . . . . . . . . . . Machines Dismantled . | . . . . . . . . . . . . . . . Machines Sabotaged . | . . . . . . . . . . . . . . . Overloaded Fab Kills . | . . . . . . . . . . . . . . . Hacking | -11 -10 -10 -9 -9 -9 -8 -8 -7 -6 -5 -4 -3 -2 -1 --------- Run | Yrd Mat Min Mat Min Exi Min Mat Fac Fac Fac Fac Res Res Acc Machines Accessed 73 | . 2 . 5 . 2 . 6 7 9 8 6 7 4 17 Terminals 34 | . 2 . 4 . . . 4 3 4 2 2 3 1 9 Fabricators 10 | . . . . . . . . 1 2 2 1 1 2 1 Repair Stations 8 | . . . . . . . 1 2 . 1 2 . 1 1 Recycling Units 9 | . . . 1 . . . . 1 2 2 1 1 . 1 Scanalyzers 5 | . . . . . . . 1 . . 1 . 1 . 2 Garrison Access 5 | . . . . . . . . . 1 . . 1 . 3 Total Hacks 190 | . 8 . 13 . 2 . 18 18 20 18 19 24 19 31 Successful 119 | . 3 . 8 . 2 . 14 15 13 10 10 14 11 19 Failed 68 | . 5 . 5 . . . 4 2 7 8 9 9 7 12 Catastrophic 6 | . . . . . . . . . . 2 2 1 . 1 Database Lockouts 3 | . . . . . . . . 1 . . . 1 1 . Manual 86 | . 4 . 3 . 1 . 6 8 6 10 9 13 12 14 Terminals 111 | . 8 . 12 . . . 12 12 11 6 7 15 10 18 Fabricators 26 | . . . . . . . . 2 4 4 4 4 7 1 Repair Stations 14 | . . . . . . . 2 3 . 2 4 . 2 1 Recycling Units 15 | . . . 1 . . . . 1 2 4 4 1 . 2 Scanalyzers 11 | . . . . . . . 4 . . 2 . 2 . 3 Garrison Access 11 | . . . . . . . . . 3 . . 2 . 6 Terminal Hacks 53 | . 2 . 7 . 2 . 8 9 6 . 1 6 7 5 Record 2 | . . . . . 1 . . . 1 . . . . . Part Schematic 1 | . . . . . . . . . 1 . . . . . Prototype ID Bank 17 | . . . 3 . . . 3 5 . . . 1 5 . Open Door 1 | . . . . . . . . . . . . . . 1 Level Access Points 5 | . . . . . . . . 1 1 . 1 . 1 1 Branch Access Points 3 | . . . . . . . 1 . . . . 1 . 1 Machine Index 2 | . . . . . . . . . 1 . . . . 1 Terminal Index 1 | . . . . . . . 1 . . . . . . . Unreport Threat 6 | . . . 1 . . . . . 1 . . 3 1 . Locate Traps 1 | . 1 . . . . . . . . . . . . . Recall Reinforcements 1 | . . . 1 . . . . . . . . . . . Hauler Manifests 2 | . . . 1 . . . 1 . . . . . . . Registered Components 4 | . . . 1 . . . . 1 1 . . 1 . . Zone Layout 6 | . 1 . . . . . 2 2 . . . . . 1 Proto ID Catalog 1 | . . . . . 1 . . . . . . . . . Fabricator Hacks 4 | . . . . . . . . . 2 . 1 1 . . Network Status 3 | . . . . . . . . . 1 . 1 1 . . Build 1 | . . . . . . . . . 1 . . . . . Repair Station Hacks 11 | . . . . . . . 1 3 . 1 4 . 1 1 Scan Component 3 | . . . . . . . . 1 . . 2 . . . Repair 3 | . . . . . . . . 1 . . 2 . . . Refit 5 | . . . . . . . 1 1 . 1 . . 1 1 Recycling Unit Hacks 9 | . . . 1 . . . . 1 2 2 1 1 . 1 Retrieve Components 9 | . . . 1 . . . . 1 2 2 1 1 . 1 Scanalyzer 11 | . . . . . . . 4 . . 2 . 2 . 3 Insert Component 3 | . . . . . . . 2 . . . . 1 . . Retrieve Study 8 | . . . . . . . 2 . . 2 . 1 . 3 Garrison Access Hacks 4 | . . . . . . . . . 1 . . 1 . 2 Seal Access 4 | . . . . . . . . . 1 . . 1 . 2 Unauthorized Hacks 27 | . 1 . . . . . 1 2 2 5 3 3 3 7 Terminals 11 | . 1 . . . . . 1 . 2 1 . 1 . 5 Assimilate 6 | . 1 . . . . . 1 . 1 1 . . . 2 Botnet 4 | . . . . . . . . . 1 . . 1 . 2 Operators 1 | . . . . . . . . . . . . . . 1 Fabricators 14 | . . . . . . . . 2 . 4 2 2 3 1 Liberate 7 | . . . . . . . . 1 . 2 1 1 1 1 Fabnet 7 | . . . . . . . . 1 . 2 1 1 2 . Repair Stations . | . . . . . . . . . . . . . . . Recycling Units 2 | . . . . . . . . . . . 1 . . 1 Monitor 1 | . . . . . . . . . . . . . . 1 Reject 1 | . . . . . . . . . . . 1 . . . Scanalyzers . | . . . . . . . . . . . . . . . Garrison Access . | . . . . . . . . . . . . . . . Data Cores Recovered . | . . . . . . . . . . . . . . . Used . | . . . . . . . . . . . . . . . Hacking Detections 45 | . 2 . 5 . . . 2 3 5 3 5 3 3 14 Full Trace Events 4 | . . . . . . . . 1 . 2 1 . . . Feedback Events 1 | . . . . . . . . 1 . . . . . . Hackware Fried 1 | . . . . . . . . 1 . . . . . . Feedback Blocked . | . . . . . . . . . . . . . . . Robot Schematics Acquired . | . . . . . . . . . . . . . . . Robots Built . | . . . . . . . . . . . . . . . Authchips . | . . . . . . . . . . . . . . . Time . | . . . . . . . . . . . . . . . Total Robot Build Rating . | . . . . . . . . . . . . . . . Part Schematics Acquired 1 | . . . . . . . . . 1 . . . . . Parts Built 2 | . . . . . . . . . 2 . . . . . Authchips . | . . . . . . . . . . . . . . . Time 58 | . . . . . . . . . 58 . . . . . Total Part Build Rating 14 | . . . . . . . . . 14 . . . . . Part Studies Acquired 8 | . . . . . . . 2 . . 2 . 1 . 3 Parts Repaired 3 | . . . . . . . . 1 . . 2 . . . Time 92 | . . . . . . . . 38 . . 54 . . . Parts Recycled . | . . . . . . . . . . . . . . . Recycled Matter . | . . . . . . . . . . . . . . . Retrieved Matter . | . . . . . . . . . . . . . . . Retrieved Components 12 | . . . . . . . . 2 3 5 . . . 2 Parts Scanalyzed . | . . . . . . . . . . . . . . . Part Schematics Acquired . | . . . . . . . . . . . . . . . Parts Damaged . | . . . . . . . . . . . . . . . Bothacking | -11 -10 -10 -9 -9 -9 -8 -8 -7 -6 -5 -4 -3 -2 -1 ------------ Run | Yrd Mat Min Mat Min Exi Min Mat Fac Fac Fac Fac Res Res Acc Used RIF Installer . | . . . . . . . . . . . . . . . Robots Hacked 1 | . . . . . . . . . . . . 1 . . Non-combat . | . . . . . . . . . . . . . . . Combat 1 | . . . . . . . . . . . . 1 . . Robot Hacks Applied . | . . . . . . . . . . . . . . . Relay Couplers Released . | . . . . . . . . . . . . . . . Fabnet Peak Effective % 7 | . . . . . . . . . 3 1 6 5 4 7 Autooverrided 1 | . . . . . . . . . . . . 1 . . Robots Rewired . | . . . . . . . . . . . . . . . Allies Hacked . | . . . . . . . . . . . . . . . Hacks Repelled . | . . . . . . . . . . . . . . . Allies | -11 -10 -10 -9 -9 -9 -8 -8 -7 -6 -5 -4 -3 -2 -1 -------- Run | Yrd Mat Min Mat Min Exi Min Mat Fac Fac Fac Fac Res Res Acc Total Allies 7 | . 1 . . . . . 1 . 1 1 . 1 . 2 Largest Group 3 | . 1 1 1 1 1 1 2 2 2 3 . 1 . 1 Highest-Rated Group 110 | . 10 10 10 10 10 10 20 20 36 60 . 110 . 45 Highest-Rated Ally 110 | . 10 10 10 10 10 10 10 10 26 26 . 110 . 45 Total Orders . | . . . . . . . . . . . . . . . Ally Attacks 4 | . . . . . . . . . . . . 4 . . Total Damage 56 | . . . . . . . . . . . . 56 . . Kills 1 | . . . . . . . . . . . . 1 . . Allies Corrupted 1 | . . . . . . . . . . 1 . . . . Allies Melted . | . . . . . . . . . . . . . . . Intel | -11 -10 -10 -9 -9 -9 -8 -8 -7 -6 -5 -4 -3 -2 -1 ------- Run | Yrd Mat Min Mat Min Exi Min Mat Fac Fac Fac Fac Res Res Acc Active Infowar (turns) 3871 | 36 160 79 97 104 92 9 . 412 277 360 314 270 651 1010 Optics 2235 | . . . . . . . . . . . 304 270 651 1010 Terrain 35 | 35 . . . . . . . . . . . . . . Structural 2994 | . . . . . . . . 412 277 292 288 270 521 934 Seismic 544 | 3 160 79 97 104 92 9 . . . . . . . . Cloaking 130 | . . . . . . . . . . . . . . 130 Jamming 1590 | . . . . . . . . . . 50 . . 568 972 ECM 1469 | . . . . . . . . . . 24 59 209 651 526 Robot Analysis Total . | . . . . . . . . . . . . . . . Derelict Logs Recovered 2 | . . 2 . . . . . . . . . . . . Drone Launches . | . . . . . . . . . . . . . . . Drone Recoveries . | . . . . . . . . . . . . . . . Exploration | -11 -10 -10 -9 -9 -9 -8 -8 -7 -6 -5 -4 -3 -2 -1 ------------- Run | Yrd Mat Min Mat Min Exi Min Mat Fac Fac Fac Fac Res Res Acc Turns Passed 4164 | 79 160 79 97 104 92 48 151 472 277 360 314 270 651 1010 Spaces Moved 8080 | 54 343 156 252 94 212 85 344 848 627 863 622 715 909 1956 Core 85 | 42 43 . . . . . . . . . . . . . Treads 12 | 12 . . . . . . . . . . . . . . Legs . | . . . . . . . . . . . . . . . Wheels . | . . . . . . . . . . . . . . . Hover . | . . . . . . . . . . . . . . . Flight 7983 | . 300 156 252 94 212 85 344 848 627 863 622 715 909 1956 Fastest Speed 23 | 50 32 32 27 32 32 32 26 26 23 23 26 24 25 23 Average Speed 27 | 74 34 32 31 32 32 32 27 27 23 24 27 24 25 26 Slowest Speed 160 | 160 55 32 32 32 32 112 32 29 23 29 31 28 29 98 Overloaded Moves . | . . . . . . . . . . . . . . . Propulsion Burnouts . | . . . . . . . . . . . . . . . Robots Hopped 43 | . 2 . 3 . . 1 . . 1 7 . 2 9 18 Potential Cave-ins . | . . . . . . . . . . . . . . . Cave-ins Triggered . | . . . . . . . . . . . . . . . Exploration Rate (%) 30 | 4 58 40 27 15 60 26 23 22 25 32 18 22 23 64 Regions Visited 14 Branch Regions 4 Pre-discovered Areas 2 | . . 1 . . 1 . . . . . . . . . Known Exits Taken 4 | . . . . . . . . 1 1 . 1 . 1 . Unknown Exits Taken 10 | 1 1 1 1 1 1 1 1 . . 1 . 1 . . Scrap Searched 1 | . . . . 1 . . . . . . . . . . Spaces Dug 241 | . . . . . . . 26 24 34 32 11 17 55 42 Terrain Destroyed 415 | . . . . . . . 26 35 34 50 11 17 106 136 Melee 130 | . . . . . . . 14 14 16 15 11 17 19 24 Projectile 24 | . . . . . . . . . . . . . . 24 AOE 261 | . . . . . . . 12 21 18 35 . . 87 88 Terrain Rammed . | . . . . . . . . . . . . . . . Walls Destroyed . | . . . . . . . . . . . . . . . Machines Disabled . | . . . . . . . . . . . . . . . Actions | -11 -10 -10 -9 -9 -9 -8 -8 -7 -6 -5 -4 -3 -2 -1 --------- Run | Yrd Mat Min Mat Min Exi Min Mat Fac Fac Fac Fac Res Res Acc Total 9747 | 75 384 184 267 165 235 102 383 1068 732 971 749 780 1291 2361 Wait 1246 | . 20 29 7 71 22 13 3 179 74 67 97 33 327 304 Move 7985 | 53 338 155 246 93 211 82 343 847 624 848 621 710 892 1922 Hop 37 | . 2 . 2 . . 1 . . 1 7 . 2 7 15 Pick Up 71 | 4 11 . 6 . 1 . 8 8 3 4 3 5 8 10 Fast Attach 24 | 7 2 . . . . 2 . 1 . . 4 . 2 6 Attach 33 | . . . 2 . . . 2 3 1 2 3 2 3 15 Detach 8 | 1 . . . . . . . . . . 2 . 2 3 Swap 32 | . 2 . . . . 2 3 2 . 7 2 3 6 5 Drop 65 | 1 9 . 4 . 1 2 6 7 2 6 4 1 11 11 Fire 68 | 9 . . . 1 . . 1 2 2 4 . . 10 39 Melee 178 | . . . . . . . 17 19 25 26 13 24 23 31 Ram . | . . . . . . . . . . . . . . . Kick . | . . . . . . . . . . . . . . . Crush . | . . . . . . . . . . . . . . . Escape Stasis . | . . . . . . . . . . . . . . . Rewire . | . . . . . . . . . . . . . . . Trap . | . . . . . . . . . . . . . . . Miscellaneous . | . . . . . . . . . . . . . . . Route ------- -11/Scrapyard -10/Materials (discovered 3 exits: *Mat x2 / [*Min]) -10/Mines -9/Materials (discovered 2 exits: [*Min] / [*Sto]) -9/Mines -9/Exiles -8/Mines -8/Materials -7/Factory (discovered 6 exits: *Fac x4 / [*Low x2]) -6/Factory (discovered 4 exits: *Fac x4) -5/Factory (discovered 2 exits: *Fac / [*Upp]) -4/Factory (discovered 4 exits: *Res x4) -3/Research (discovered 3 exits: *Res / Qua x2) -2/Research (discovered 4 exits: *Acc x3 / *Tes) -1/Access (discovered 2 exits: *Sur / Com) To Epsilon Eridani History --------- Turn | Location | Event 36 | -11/Scrapyard | Discovered new exit (range 16) 80 | -11/Scrapyard | Entered Materials 123 | -10/Materials | Discovered new exit (range 13) 188 | -10/Materials | Discovered new exit (range 8) 190 | -10/Materials | Discovered new exit (range 16) 240 | -10/Materials | Entered Mines 240 | -10/Mines | Accompanied by 1 ally 249 | -10/Mines | Learned location of Zion (-7) 277 | -10/Mines | Learned Materials emergency access door positions 289 | -10/Mines | Discovered new exit (range 4) 302 | -10/Mines | Build established: Sprinter 319 | -10/Mines | Entered Materials 319 | -9/Materials | Accompanied by 1 ally 319 | -9/Materials | Evolved 2 slots: Propulsion x2 343 | -9/Materials | Discovered new exit (range 16) 396 | -9/Materials | Discovered new exit (range 13) 416 | -9/Materials | Entered Mines 416 | -9/Mines | Accompanied by 1 ally 459 | -9/Mines | Met a Derelict bent on vengeance 507 | -9/Mines | Deemed a non-threat by the Exiles lab entrance 507 | -9/Mines | Discovered new exit (range 5) 520 | -9/Mines | Entered Exiles 520 | -9/Exiles | Accompanied by 1 ally 528 | -9/Exiles | Met 8R-AWN 534 | -9/Exiles | Met EX-HEX 542 | -9/Exiles | Met EX-BIN 546 | -9/Exiles | Aligned with FarCom system 547 | -9/Exiles | Given EX-Vault access code 555 | -9/Exiles | Opened EX-Vault 557 | -9/Exiles | Found Longsword +1 565 | -9/Exiles | Warned to stay clear of 0b10 Research branches 575 | -9/Exiles | Met EX-DEC 587 | -9/Exiles | Discovered new exit (range 10) 612 | -9/Exiles | Left Exiles lab with Longsword +1 612 | -9/Exiles | Entered Mines 612 | -8/Mines | Accompanied by 1 ally 643 | -8/Mines | Discovered new exit (range 15) 660 | -8/Mines | Entered Materials 660 | -8/Materials | Accompanied by 1 ally 660 | -8/Materials | Evolved 2 slots: Utility x2 732 | -8/Materials | Discovered new exit (range 18) 811 | -8/Materials | Entered Factory 811 | -7/Factory | Accompanied by 2 allies 811 | -7/Factory | Evolved 2 slots: Utility x2 960 | -7/Factory | Repaired Hacking Suite 963 | -7/Factory | Build established: Hacker-Sprinter 1075 | -7/Factory | Discovered new exit (range 9) 1093 | -7/Factory | Identified exit to Factory 1093 | -7/Factory | Hacking Suite fried by hacking feedback 1095 | -7/Factory | Discovered new exit (range 14) 1096 | -7/Factory | Central database locked down 1283 | -7/Factory | Entered another Factory area 1283 | -6/Factory | Accompanied by 1 ally 1283 | -6/Factory | Evolved 2 slots: Power x1, Propulsion x1 1290 | -6/Factory | Identified exit to Factory 1527 | -6/Factory | Fabricated Adv. Transmission Jammer (x2) 1560 | -6/Factory | Entered another Factory area 1560 | -5/Factory | Accompanied by 2 allies 1560 | -5/Factory | Evolved 2 slots: Propulsion x2 1858 | -5/Factory | Discovered new exit (range 8) 1918 | -5/Factory | Discovered new exit (range 6) 1920 | -5/Factory | Entered another Factory area 1920 | -4/Factory | Evolved 2 slots: Utility x2 1962 | -4/Factory | Repaired Structural Scanner 2076 | -4/Factory | Identified exit to Research 2112 | -4/Factory | Repaired Field Propulsion Drive+ 2234 | -4/Factory | Entered Research 2234 | -3/Research | Evolved 2 slots: Utility x2 2279 | -3/Research | Build established: Hacker-Ninja 2281 | -3/Research | Found Fusion Bomb Launcher 2323 | -3/Research | Found Prototype Device 2330 | -3/Research | Watched by a mysterious "MATRIX" hacker. 2485 | -3/Research | Spotted B-86 Titan 2494 | -3/Research | Discovered new exit (range 5) 2502 | -3/Research | Identified exit to Quarantine 2502 | -3/Research | Central database locked down 2504 | -3/Research | Entered another Research area 2504 | -2/Research | Evolved 2 slots: Utility x2 2531 | -2/Research | Spotted B-90 Cyclops 2569 | -2/Research | Discovered new exit (range 5) 2570 | -2/Research | Identified exit to Testing 2573 | -2/Research | Identified exit to Access 2581 | -2/Research | Identified Exp. Thermal Shield 2581 | -2/Research | Central database locked down 2613 | -2/Research | Spotted B-90 Cyclops 2695 | -2/Research | Spotted B-90 Cyclops 2778 | -2/Research | Spotted B-90 Cyclops 3155 | -2/Research | Entered Access 3155 | -1/Access | Evolved 2 slots: Utility x2 3539 | -1/Access | Spotted B-99 Colossus 3858 | -1/Access | Energy Cycler disabled 3918 | -1/Access | Identified exit to Surface 4022 | -1/Access | Build established: Hacker-Scout 4042 | -1/Access | Spotted B-99 Colossus 4083 | -1/Access | Spotted B-99 Colossus 4116 | -1/Access | Identified exit to Command 4125 | -1/Access | Spotted B-99 Colossus 4165 | *** | Escaped! Last Messages --------------- 04158_ The unstable cave ceiling collapses. 04158_ U-05 Engineer lays Concrete. 04158_ Penetrated by Slug. 04159_ U-05 Engineer lays Concrete. 04161_ The unstable cave ceiling collapses. 04161_ G-73 Enforcer misfires. 04161_ Q-thruster+ destroyed. 04161_ Penetrated by Slug. 04161_ Slug penetrates Earth. 04161_ Imp. Q-thruster destroyed. 04161_ Penetrated by Slug. 04161_ U-05 Engineer lays Concrete. 04162_ The unstable cave ceiling collapses. 04162_ U-05 Engineer lays Concrete. 04164_ U-05 Engineer builds a Wall. 04164_ Slug penetrates Wall. 04164_ Terminal disabled. 04164_ P-80 Master resets G-73 Enforcer, system corruption cleaned. 04164_ Slug penetrates G-73 Enforcer. 04164_ Penetrated by Slug. Map ----- +----------------------------------------------------+ | ??????????????## """ # " ##??###### | | ??????????????## """ # ##??????## | | ??????????????## " # ##??????## | | ??????????????## % # ##??????## | | ##+##?????????## # ##??????## | | ############ + ##??????## | | * # ##??????## | | ################### # ##??????## | | #???????########### " ##??????## | | # ##????????????????## "##############??????## | | # #????????????????? ############??????## | | # #?????????????????? #?????????????????## | | + ########??????????? #?????????????????## | | # #?????????? #??????????????????? | | # #??????????BB BB #??????????????????? | | # #??????????BB BB #??????????????????? | | #=== #?????????? ????????????????????? | | #=== +???????????""""""?????????????????????? | | #=== #??????????????????????????????????????? | | # #??????????????????????????????????????? | | # #????????#""""""""""#??????????????????? | | # #????????# #??????????????????? | | # #????????# #?###############??? | | + #????????# #?###############??? | | # #????????# "" #?## ! ##??? | | # #????????# "@ #?## ##??? | | # #????????# #?## ##### | | # #????????# #?## ##### | | # #????????# #?## + | | # #???????## #### # | | #??????? ### = !# | | #??????# #### " # | | #?????" #?## """" # | | +????" #?## """"" # | | #??? g b #?## """"" ##### | | #? ! g #?## """" ##### | | ### #?## " ##??# | | ### g ############+### ?? | | # u! p % ?? | | # Y p ?? | | # h # ###### = ? | | # # # ###### """"" [[ ? | | # """"" [[ | | # "" F" [[ | | | | # | | #+######"######## | | ##??????? ####+######## ?######### # | | #????????##+####??????????????#########+## | | #????????????????????????????????## | +----------------------------------------------------+ Best States ------------- Heat Dissipation 52 Energy Generation 38 Energy Capacity 190 Matter Stores 300 Matter Capacity 300 Sight Range 22 Terrain Scan Range 16 Terrain Scan Density 10 ECM Strength 1 Jamming Range 16 Cloak Strength 3 Power Amplification 30 Armor Coverage 300 Evasion (%) 77 Core Analysis 6 Recoil Reduction 2 Offensive Hacking 44 Defensive Hacking 26 Item Schematics ----------------- Lrn. Proton Cannon | -6/Factory | Hacked Robot Schematics ------------------ None Fabricated ------------ Adv. Transmission Jammer | x2 | -6/Factory | Preloaded Repaired ---------- Hacking Suite | 80% | -7/Factory Structural Scanner | 90% | -4/Factory Field Propulsion Drive | 23% | -4/Factory Studied --------- VTOL Module | -8/Materials | Hacked Flight Unit | -8/Materials | Hacked Field Propulsion Drive | -5/Factory | Hacked Mni. Grenade Launcher | -5/Factory | Hacked Field Propulsion Array | -3/Research | Hacked Q-thruster | -1/Access | Hacked Enh. Hardcell Cannon | -1/Access | Hacked Enh. Nova Cannon | -1/Access | Hacked Alien Tech Used ----------------- None Achievements -------------- None Challenges ------------ None Game ------ Seed ChargeTrackerJoltstriker Manual? 0 Play Time 01:23:23 Cumulative 185.6 hours Start 2026.04.05 @ 09:58:42 End 2026.04.05 @ 11:26:21 Sessions 1 Manual Loads 0 Difficulty Rogue Special Mode None Game No. 118 Rogue 114 Adventurer 4 Explorer 0 Win Type 0 Total 24 Types 23/0/1/0/0/0/0/0/0/0 Lore% 84 Gallery% 61 Achievement% 54 Wizard Run 0 Options --------- Layout 0 ASCII 0 Keyboard 1 Movement Vi Keybinds 0 Fullscreen 0 Font 16/SmallcapsGlow Map View 76x50 Zoom Use 0% Tactical HUD 1 Map Filters NONE Filters NONE Steam 1 RUN: 1e1b82f1-59a7-420a-a19b-586471b09ec2